bitfinex/quotes_BTCUSD_20240810
["timestamp","ask_amount","ask_price","bid_price","bid_amount"]
[1723332711571,0.00076963,60924.0,60923.0,0.99027023]
[1723332712304,0.00076963,60924.0,60923.0,0.92968117]
[1723332712450,0.00076963,60924.0,60923.0,0.99306759]
[1723332713692,0.00076963,60924.0,60923.0,1.09563479]
[1723332715674,0.00076963,60924.0,60923.0,1.03226572]
[1723332715877,0.00076963,60924.0,60923.0,1.26603434]
[1723332716304,0.00076963,60924.0,60923.0,1.09565861]
[1723332716548,0.00076963,60924.0,60923.0,1.26603434]
[1723332717004,0.00076963,60924.0,60923.0,0.92956482]
[1723332717357,0.00076963,60924.0,60923.0,0.99296071]
[1723332717974,0.00076963,60924.0,60923.0,0.92956482]
[1723332718569,0.00076963,60924.0,60923.0,0.99297228]
[1723332718812,0.00076963,60924.0,60923.0,0.99296094]
[1723332718984,0.00076963,60924.0,60923.0,0.92956482]
[1723332719195,0.00076963,60924.0,60923.0,0.99296066]
[1723332719436,0.00076963,60924.0,60923.0,0.99296067]
[1723332719634,0.00076963,60924.0,60923.0,0.99298405]
[1723332719843,0.00076963,60924.0,60923.0,0.85619507]
[1723332720063,0.00076963,60924.0,60923.0,0.9295888]
[1723332721781,0.00076963,60924.0,60923.0,0.85619507]
[1723332721998,0.00076963,60924.0,60923.0,0.92961555]
[1723332722773,0.00076963,60924.0,60923.0,0.97868718]
[1723332723404,0.00076963,60924.0,60923.0,0.89071413]
[1723332723641,0.00076963,60924.0,60923.0,0.9200425]
[1723332724482,0.00076963,60924.0,60923.0,0.96611413]
[1723332724686,0.00076963,60924.0,60923.0,0.96711413]
[1723332725452,0.00076963,60924.0,60923.0,0.96658501]
[1723332726576,0.00076963,60924.0,60923.0,0.96558501]
[1723332726765,0.00076963,60924.0,60923.0,0.96858501]
[1723332727105,0.00070737,60924.0,60923.0,0.96858501]
[1723332728379,0.00070737,60924.0,60923.0,0.91945378]
[1723332728556,0.00070737,60924.0,60923.0,0.96852541]
[1723332728966,0.00070737,60924.0,60923.0,0.99298788]
[1723332729377,0.00070737,60924.0,60923.0,0.99298814]
[1723332729583,0.00070737,60924.0,60923.0,1.13298814]
[1723332729782,0.00070737,60924.0,60923.0,1.05538814]
[1723332730773,0.00070737,60924.0,60923.0,1.10465283]
[1723332731535,0.00070737,60924.0,60923.0,1.05538814]
[1723332731969,0.00070737,60924.0,60923.0,1.10465283]
[1723332732549,0.00070737,60924.0,60923.0,1.10465946]
[1723332733101,0.00070737,60924.0,60923.0,1.05581923]
[1723332733269,0.00070737,60924.0,60923.0,1.11911623]
[1723332733472,0.00070737,60924.0,60923.0,1.05581923]
[1723332733678,0.00070737,60924.0,60923.0,1.11911615]
[1723332734089,0.00070737,60924.0,60923.0,1.27725715]
[1723332734362,0.00070737,60924.0,60923.0,1.65433307]
[1723332734603,0.00170737,60924.0,60923.0,1.65433307]
[1723332735050,0.00070737,60924.0,60923.0,1.65433307]
[1723332735252,0.00070737,60924.0,60923.0,1.65733307]
[1723332735826,0.00070737,60924.0,60923.0,1.66233307]
[1723332736049,0.00070737,60924.0,60923.0,1.6616364]
[1723332736611,0.00070737,60924.0,60923.0,1.6586364]
[1723332736813,0.00070737,60924.0,60923.0,1.6636364]
[1723332737237,0.00070737,60924.0,60923.0,1.6656364]
[1723332737431,0.00070737,60924.0,60923.0,1.6636364]
[1723332737862,0.00070737,60924.0,60923.0,1.4994954]
[1723332738034,0.00070737,60924.0,60923.0,1.4218954]
[1723332738235,0.00070737,60924.0,60923.0,1.45794261]
[1723332739057,0.00070737,60924.0,60923.0,1.3594954]
[1723332739255,0.00070737,60924.0,60923.0,1.43333104]
[1723332739511,0.00070737,60924.0,60923.0,1.33064201]
[1723332739712,0.00070737,60924.0,60923.0,1.35951076]
[1723332739885,0.00070737,60924.0,60923.0,1.18903591]
[1723332740182,0.00070737,60924.0,60923.0,1.35941019]
[1723332740547,0.00070737,60924.0,60923.0,1.35441019]
[1723332740747,0.00070737,60924.0,60923.0,1.35741019]
[1723332741335,0.00070737,60924.0,60923.0,1.35240127]
[1723332741542,0.00070737,60924.0,60923.0,1.34940127]
[1723332741743,0.00070737,60924.0,60923.0,1.32353289]
[1723332741862,0.00070737,60924.0,60923.0,1.32053289]
[1723332742381,0.00070737,60924.0,60923.0,1.32553608]
[1723332743107,0.00070737,60924.0,60923.0,0.99202117]
[1723332743310,0.00070737,60924.0,60923.0,1.05517088]
[1723332743510,0.00070737,60924.0,60923.0,1.06017088]
[1723332743937,0.00070737,60924.0,60923.0,1.05017088]
[1723332744135,0.00070737,60924.0,60923.0,0.97633487]
[1723332744455,0.00070737,60924.0,60923.0,0.98233487]
[1723332744681,0.07740737,60924.0,60923.0,0.97933487]
[1723332744856,0.07740737,60924.0,60923.0,0.98133487]
[1723332745054,0.07740737,60924.0,60923.0,0.84962202]
[1723332745256,0.07740737,60924.0,60923.0,0.98036375]
[1723332745458,0.07740737,60924.0,60923.0,0.98436375]
[1723332746500,0.07740737,60924.0,60923.0,0.98036375]
[1723332746718,0.07740737,60924.0,60923.0,0.84462202]
[1723332746886,0.07740737,60924.0,60923.0,0.98438661]
[1723332747089,0.07740737,60924.0,60923.0,0.98038661]
[1723332747293,0.07740737,60924.0,60923.0,0.97638661]
[1723332747495,0.00070737,60924.0,60923.0,0.98238661]
[1723332748755,0.06370737,60924.0,60923.0,0.95321707]
[1723332748963,0.06370737,60924.0,60923.0,0.91922456]
[1723332749973,0.14040737,60924.0,60923.0,0.83782456]
[1723332750176,0.14040737,60924.0,60923.0,0.91322456]
[1723332750314,0.14040737,60924.0,60923.0,0.91644679]
[1723332750514,0.14040737,60924.0,60923.0,0.91744679]
[1723332750898,0.14040737,60924.0,60923.0,0.91644679]
[1723332751080,0.14040737,60924.0,60923.0,0.91344679]
[1723332751263,0.14040737,60924.0,60923.0,0.91444679]
[1723332751665,0.14040737,60924.0,60923.0,0.91644679]
[1723332753066,0.14040737,60924.0,60923.0,0.91944679]
[1723332753969,0.14040737,60924.0,60923.0,0.84662202]
[1723332754174,0.14040737,60924.0,60923.0,0.9165156]
[1723332754504,0.14040737,60924.0,60923.0,0.9155156]
[1723332754883,0.14040737,60924.0,60923.0,0.9135156]
[1723332756418,0.14040737,60924.0,60923.0,0.9145156]
[1723332757093,0.07740737,60924.0,60923.0,0.9145156]
[1723332757499,0.00070737,60924.0,60923.0,0.9155156]
[1723332757631,0.00070737,60924.0,60923.0,0.84162202]
[1723332757828,0.00070737,60924.0,60923.0,0.91345241]
[1723332758030,0.00070737,60924.0,60923.0,0.91645241]
[1723332758555,0.00070737,60924.0,60923.0,0.92045241]
[1723332759352,0.00070737,60924.0,60923.0,0.91745241]
[1723332759922,0.00070737,60924.0,60923.0,0.83905241]
[1723332760168,0.00070737,60924.0,60923.0,0.92145241]
[1723332760603,0.00070737,60924.0,60923.0,0.91745241]
[1723332760731,0.00070737,60924.0,60923.0,0.91345241]
[1723332760949,0.00070737,60924.0,60923.0,0.91445241]
[1723332761199,0.00070737,60924.0,60923.0,0.91443108]
[1723332761749,0.00070737,60924.0,60923.0,0.91543093]
[1723332761975,0.00070737,60924.0,60923.0,0.83703093]
[1723332762292,0.00070737,60924.0,60923.0,0.91543093]
[1723332762528,0.00070737,60924.0,60923.0,0.83603093]
[1723332762703,0.00070737,60924.0,60923.0,0.91643093]
[1723332763225,0.00070737,60924.0,60923.0,0.91443093]
[1723332763358,0.00070737,60924.0,60923.0,0.91343093]
[1723332763582,0.00070737,60924.0,60923.0,0.91543093]
[1723332763986,0.00070737,60924.0,60923.0,0.91343093]
[1723332764783,0.00070737,60924.0,60923.0,0.91278902]
[1723332766298,0.14830737,60924.0,60923.0,0.5848331]
[1723332766917,0.14830737,60924.0,60923.0,0.5126661]
[1723332767244,0.17032654,60924.0,60923.0,0.58488751]
[1723332768267,0.17032654,60924.0,60923.0,0.5126661]
[1723332768466,0.17032654,60924.0,60923.0,0.58491189]
[1723332771003,0.17032654,60924.0,60923.0,0.50651189]
[1723332771201,0.17032654,60924.0,60923.0,0.5126661]
[1723332772942,0.17032654,60924.0,60923.0,0.4896661]
[1723332777458,0.10432654,60924.0,60923.0,0.56227899]
[1723332777663,0.08230737,60924.0,60923.0,0.56227899]
[1723332781660,0.08230737,60924.0,60923.0,0.56225245]
[1723332782435,0.08230737,60924.0,60923.0,0.56220177]
[1723332782816,0.08230737,60924.0,60923.0,0.56220179]
[1723332783441,0.08230737,60924.0,60923.0,0.4896661]
[1723332783642,0.08230737,60924.0,60923.0,0.56220413]
[1723332785445,0.08230737,60924.0,60923.0,0.56228867]
[1723332786814,0.08230737,60924.0,60923.0,0.48388867]
[1723332787151,0.08230737,60924.0,60923.0,0.56228867]
[1723332787930,0.08230737,60924.0,60923.0,0.56199501]
[1723332789050,0.08230737,60924.0,60923.0,0.56212156]
[1723332789263,0.08230737,60924.0,60923.0,0.72626256]
[1723332789507,0.00070737,60924.0,60923.0,0.89016256]
[1723332791169,0.00070737,60924.0,60923.0,1.05397748]
[1723332792651,0.00070737,60924.0,60923.0,1.05597748]
[1723332792850,0.00070737,60924.0,60923.0,0.98352202]
[1723332793080,0.00070737,60924.0,60923.0,0.91310892]
[1723332793431,0.00070737,60924.0,60923.0,0.91611892]
[1723332793968,0.00070737,60924.0,60923.0,0.92111892]
[1723332794336,0.00070737,60924.0,60923.0,0.91611892]
[1723332794535,0.00070737,60924.0,60923.0,0.92011892]
[1723332795044,0.00070737,60924.0,60923.0,0.91711892]
[1723332795449,0.00070737,60924.0,60923.0,0.92111892]
[1723332796068,0.00070737,60924.0,60923.0,0.91711892]
[1723332796305,0.00070737,60924.0,60923.0,0.91311892]
[1723332796517,0.00070737,60924.0,60923.0,0.84162202]
[1723332796717,0.00070737,60924.0,60923.0,0.91400529]
[1723332796877,0.00070737,60924.0,60923.0,0.83560529]
[1723332797078,0.00070737,60924.0,60923.0,0.91400529]
[1723332797788,0.00070737,60924.0,60923.0,0.91300529]
[1723332798400,0.00070737,60924.0,60923.0,0.75019037]
[1723332798785,0.00070737,60924.0,60923.0,0.58604937]
[1723332799012,0.00070737,60924.0,60923.0,0.58504937]
[1723332800194,0.00070737,60924.0,60923.0,0.58501658]
[1723332801319,0.14230737,60924.0,60923.0,0.50761658]
[1723332801489,0.08140737,60924.0,60923.0,0.58601658]
[1723332801891,0.08140737,60924.0,60923.0,0.58501658]
[1723332803576,0.08140737,60924.0,60923.0,0.5126661]
[1723332803723,0.08140737,60924.0,60923.0,0.58490729]
[1723332804218,0.08140737,60924.0,60923.0,0.58490705]
[1723332805336,0.14230737,60924.0,60923.0,0.56190705]
[1723332805461,0.14230737,60924.0,60923.0,0.56192498]
[1723332808387,0.14230737,60924.0,60923.0,0.4896661]
[1723332808590,0.14230737,60924.0,60923.0,0.56191054]
[1723332808812,0.1643311,60924.0,60923.0,0.56191054]
[1723332808979,0.1643311,60924.0,60923.0,0.56191036]
[1723332808980,0.14230737,60924.0,60923.0,0.56191036]
[1723332809646,0.14230737,60924.0,60923.0,0.4896661]
[1723332810048,0.1643311,60924.0,60923.0,0.4896661]
[1723332811400,0.0227311,60924.0,60923.0,0.5619332]
[1723332811788,0.00070737,60924.0,60923.0,0.5619332]
[1723332812110,0.00070737,60924.0,60923.0,0.5849332]
[1723332814423,0.00070737,60924.0,60923.0,0.5126661]
[1723332814745,0.00070737,60924.0,60923.0,0.58490449]
[1723332815867,0.08360737,60924.0,60923.0,0.58490449]
[1723332816495,0.08360737,60924.0,60923.0,0.56190449]
[1723332818085,0.08360737,60924.0,60923.0,0.56151609]
[1723332821735,0.08360737,60924.0,60923.0,0.56132926]
[1723332824574,0.08360737,60924.0,60923.0,0.56232926]
[1723332825418,0.08360737,60924.0,60923.0,0.4906661]
[1723332825549,0.08360737,60924.0,60923.0,0.56235391]
[1723332825754,0.08360737,60924.0,60923.0,0.4906661]
[1723332825952,0.08360737,60924.0,60923.0,0.56135391]
[1723332829023,0.08360737,60924.0,60923.0,0.56136741]
[1723332832628,0.08360737,60924.0,60923.0,0.4896661]
[1723332834293,0.08360737,60924.0,60923.0,0.56133089]
[1723332834703,0.08360737,60924.0,60923.0,0.4896661]
[1723332836090,0.08360737,60924.0,60923.0,0.56131629]
[1723332836587,0.00070737,60924.0,60923.0,0.4896661]
[1723332836787,0.00070737,60924.0,60923.0,0.56131564]
[1723332838380,0.00070737,60924.0,60923.0,0.65051564]
[1723332839768,0.00070737,60924.0,60923.0,0.65046555]
[1723332839977,0.00070737,60924.0,60923.0,0.81460655]
[1723332840178,0.00070737,60924.0,60923.0,0.81458541]
[1723332840386,0.00070737,60924.0,60923.0,0.8145853]
[1723332841146,0.00070737,60924.0,60923.0,0.86386786]
[1723332841539,0.00070737,60924.0,60923.0,1.10968278]
[1723332841736,0.00070737,60924.0,60923.0,1.06040022]
[1723332841973,0.00070737,60924.0,60923.0,1.10967866]
[1723332842251,0.00070737,60924.0,60923.0,1.06089135]
[1723332842394,0.00070737,60924.0,60923.0,1.11016487]
[1723332842851,0.00070737,60924.0,60923.0,1.19787926]
[1723332843205,0.00070737,60924.0,60923.0,1.06289135]
[1723332843436,0.00070737,60924.0,60923.0,1.19987892]
[1723332843707,0.00070737,60924.0,60923.0,1.20387892]
[1723332843916,0.00070737,60924.0,60923.0,1.06489135]
[1723332844044,0.00070737,60924.0,60923.0,1.11415874]
[1723332844256,0.00070737,60924.0,60923.0,1.074663]
[1723332844654,0.00070737,60924.0,60923.0,1.14858684]
[1723332845281,0.00070737,60924.0,60923.0,1.074663]
[1723332845798,0.00070737,60924.0,60923.0,1.12792078]
[1723332847263,0.00070737,60924.0,60923.0,1.12392078]
[1723332847667,0.00070737,60924.0,60923.0,1.12692078]
[1723332848286,0.00070737,60924.0,60923.0,1.12691186]
[1723332848873,0.00070737,60924.0,60923.0,1.070663]
[1723332849080,0.00070737,60924.0,60923.0,1.04784253]
[1723332849316,0.00070737,60924.0,60923.0,1.07757505]
[1723332849862,0.00070737,60924.0,60923.0,1.0815749]
[1723332851051,0.00070737,60924.0,60923.0,1.13082376]
[1723332851769,0.00070737,60924.0,60923.0,1.0815749]
[1723332852680,0.00070737,60924.0,60923.0,1.2457159]
[1723332852876,0.00070737,60924.0,60923.0,1.68991527]
[1723332853085,0.00070737,60924.0,60923.0,1.67091527]
[1723332853254,0.00070737,60924.0,60923.0,1.67491527]
[1723332853463,0.00070737,60924.0,60923.0,1.33637427]
[1723332853639,0.00070737,60924.0,60923.0,1.53781373]
[1723332853842,0.00070737,60924.0,60923.0,1.50920808]
[1723332854027,0.00070737,60924.0,60923.0,1.30807626]
[1723332854227,0.00070737,60924.0,60923.0,1.2075307]
[1723332854429,0.00070737,60924.0,60923.0,1.2125307]
[1723332854677,0.00070737,60924.0,60923.0,1.2175307]
[1723332855066,0.00070737,60924.0,60923.0,1.14370309]
[1723332855270,0.00070737,60924.0,60923.0,1.14376981]
[1723332855482,0.00070737,60924.0,60923.0,1.14376969]
[1723332855670,0.00070737,60924.0,60923.0,1.08062919]
[1723332855871,0.00070737,60924.0,60923.0,1.07562919]
[1723332856204,0.00070737,60924.0,60923.0,1.07862919]
[1723332856412,0.00070737,60924.0,60923.0,1.01859367]
[1723332856599,0.00070737,60924.0,60923.0,1.12808864]
[1723332856845,0.00070737,60924.0,60923.0,1.07087486]
[1723332857030,0.00070737,60924.0,60923.0,1.08887486]
[1723332857172,0.00070737,60924.0,60923.0,1.1519925]
[1723332857811,0.00070737,60924.0,60923.0,1.08887486]
[1723332858210,0.00070737,60924.0,60923.0,1.13808719]
[1723332859172,0.00070737,60924.0,60923.0,1.20121621]
[1723332859329,0.00070737,60924.0,60923.0,1.20121173]
[1723332860073,0.00070737,60924.0,60923.0,1.06580152]
[1723332860228,0.00070737,60924.0,60923.0,1.20121375]
[1723332860648,0.00070737,60924.0,60923.0,1.20121365]
[1723332861819,0.00070737,60924.0,60923.0,1.08887291]
[1723332861940,0.00070737,60924.0,60923.0,1.15200598]
[1723332862138,0.00070737,60924.0,60923.0,1.08887291]
[1723332862357,0.00070737,60924.0,60923.0,1.15201144]
[1723332862582,0.00070737,60924.0,60923.0,1.20121624]
[1723332864095,0.00070737,60924.0,60923.0,1.20120619]
[1723332864356,0.00070737,60924.0,60923.0,1.15200139]
[1723332864513,0.00070737,60924.0,60923.0,1.20120619]
[1723332864926,0.00070737,60924.0,60923.0,1.32237736]
[1723332865129,0.00070737,60924.0,60923.0,1.39618456]
[1723332865335,0.00070737,60924.0,60923.0,1.32237736]
[1723332865534,0.00070737,60924.0,60923.0,1.37157839]
[1723332866120,0.00070737,60924.0,60923.0,1.20120242]
[1723332866349,0.00070737,60924.0,60923.0,1.37157476]
[1723332867344,0.00070737,60924.0,60923.0,1.07970143]
[1723332867548,0.00070737,60924.0,60923.0,1.15185967]
[1723332867753,0.00070737,60924.0,60923.0,1.20106072]
[1723332868156,0.00070737,60924.0,60923.0,1.15185967]
[1723332868334,0.00070737,60924.0,60923.0,1.20106072]
[1723332868519,0.00070737,60924.0,60923.0,1.37143646]
[1723332869164,0.00070737,60924.0,60923.0,1.20106072]
[1723332869340,0.00070737,60924.0,60923.0,1.15185967]
[1723332869719,0.00070737,60924.0,60923.0,1.15186339]
[1723332870247,0.00070737,60924.0,60923.0,1.37144137]
[1723332870452,0.00070737,60924.0,60923.0,1.37159118]
[1723332870672,0.00070737,60924.0,60923.0,1.15201318]
[1723332871103,0.00070737,60924.0,60923.0,1.20124605]
[1723332871311,0.00070737,60924.0,60923.0,1.37162334]
[1723332871473,0.00070737,60924.0,60923.0,1.47432789]
[1723332871671,0.00070737,60924.0,60923.0,1.47433204]
[1723332871962,0.00070737,60924.0,60923.0,1.42513099]
[1723332872110,0.00070737,60924.0,60923.0,1.47433506]
[1723332872305,0.00070737,60924.0,60923.0,1.37163051]
[1723332872531,0.00070737,60924.0,60923.0,1.49893195]
[1723332872726,0.00070737,60924.0,60923.0,1.66307295]
[1723332874301,0.00070737,60924.0,60923.0,1.71227401]
[1723332874784,0.00070737,60924.0,60923.0,1.54174713]
[1723332874983,0.00070737,60924.0,60923.0,1.71210655]
[1723332875193,0.00070737,60924.0,60923.0,1.70310655]
[1723332875718,0.00070737,60924.0,60923.0,1.71226841]
[1723332875917,0.00070737,60924.0,60923.0,1.71426841]
[1723332876063,0.00070737,60924.0,60923.0,1.58026577]
[1723332876265,0.00070737,60924.0,60923.0,1.69426456]
[1723332876506,0.00070737,60924.0,60923.0,1.71626999]
[1723332876667,0.00070737,60924.0,60923.0,1.71627017]
[1723332876889,0.00070737,60924.0,60923.0,1.70727017]
[1723332877192,0.00070737,60924.0,60923.0,1.72027017]
[1723332877338,0.00070737,60924.0,60923.0,1.70727017]
[1723332877781,0.00070737,60924.0,60923.0,1.65813881]
[1723332877963,0.00070737,60924.0,60923.0,1.70830271]
[1723332878385,0.00070737,60924.0,60923.0,1.59844402]
[1723332878718,0.00070737,60924.0,60923.0,1.89258502]
[1723332879011,0.00070737,60924.0,60923.0,2.02918372]
[1723332879301,0.00070737,60924.0,60923.0,1.89558502]
[1723332879707,0.00070737,60924.0,60923.0,1.88158502]
[1723332879905,0.00070737,60924.0,60923.0,1.89558502]
[1723332880128,0.00070737,60924.0,60923.0,1.88158502]
[1723332880336,0.00070737,60924.0,60923.0,1.89558502]
[1723332881304,0.00070737,60924.0,60923.0,2.04311434]
[1723332881642,0.00070737,60924.0,60923.0,2.0291216]
[1723332881980,0.00070737,60924.0,60923.0,1.88125049]
[1723332882429,0.00070737,60924.0,60923.0,1.5895796]
[1723332882625,0.00070737,60924.0,60923.0,1.89530554]
[1723332883276,0.00070737,60924.0,60923.0,2.04283269]
[1723332883848,0.00070737,60924.0,60923.0,1.87252612]
[1723332884039,0.00070737,60924.0,60923.0,2.02886866]
[1723332884418,0.00070737,60924.0,60923.0,2.04286866]
[1723332884836,0.00070737,60924.0,60923.0,2.02886866]
[1723332884999,0.00070737,60924.0,60923.0,2.04286866]
[1723332885414,0.00070737,60924.0,60923.0,1.90744929]
[1723332885731,0.00070737,60924.0,60923.0,2.02887761]
[1723332885939,0.00070737,60924.0,60923.0,2.04287761]
[1723332886356,0.00070737,60924.0,60923.0,2.02887761]
[1723332886539,0.00070737,60924.0,60923.0,2.04287761]
[1723332887998,0.00070737,60924.0,60923.0,1.87253455]
[1723332888199,0.00070737,60924.0,60923.0,2.04287709]
[1723332889085,0.00070737,60924.0,60923.0,2.04289261]
[1723332889702,0.000831,60937.0,60936.0,0.738477]
[1723332889900,0.000831,60937.0,60936.0,1.07599852]
[1723332891142,0.000831,60937.0,60936.0,1.07899852]
[1723332892171,0.000831,60937.0,60936.0,1.09191703]
[1723332892371,0.000831,60937.0,60936.0,1.30706222]
[1723332892577,0.000831,60937.0,60936.0,1.65380554]
[1723332892866,0.000831,60937.0,60936.0,1.67890184]
[1723332893075,0.000831,60937.0,60936.0,1.58058907]
[1723332893263,0.000831,60937.0,60936.0,1.65450729]
[1723332893433,0.000831,60937.0,60936.0,1.65150729]
[1723332893638,0.000831,60937.0,60936.0,1.66050729]
[1723332894046,0.000831,60937.0,60936.0,1.64750729]
[1723332894370,0.000831,60937.0,60936.0,1.55783239]
[1723332894614,0.000831,60937.0,60936.0,1.54787301]
[1723332894833,0.077431,60937.0,60936.0,1.30157301]
[1723332895028,0.077431,60937.0,60936.0,0.94256432]
[1723332895229,0.138731,60937.0,60936.0,0.98083286]
[1723332895388,0.138731,60937.0,60936.0,0.91759109]
[1723332895790,0.138731,60937.0,60936.0,0.82927258]
[1723332896005,0.138731,60937.0,60936.0,0.90767258]
[1723332896208,0.138731,60937.0,60936.0,0.83458592]
[1723332897449,0.138731,60937.0,60936.0,0.85758592]
[1723332898257,0.138731,60937.0,60936.0,0.878473]
[1723332898646,0.138731,60937.0,60936.0,0.85758592]
[1723332900060,0.138731,60937.0,60936.0,0.93053757]
[1723332900950,0.138731,60937.0,60936.0,0.85758592]
[1723332901537,0.138731,60937.0,60936.0,0.93039898]
[1723332902791,0.138731,60937.0,60936.0,0.85758592]
[1723332904633,0.077431,60937.0,60936.0,0.85758592]
[1723332906647,0.077431,60937.0,60936.0,0.93031688]
[1723332908595,0.077431,60937.0,60936.0,0.85758592]
[1723332910193,0.077431,60937.0,60936.0,0.92073581]
[1723332910397,0.000831,60937.0,60936.0,0.92073581]
[1723332910632,0.000831,60937.0,60936.0,0.92068839]
[1723332911546,0.000831,60937.0,60936.0,0.85758592]
[1723332911749,0.000831,60937.0,60936.0,0.92067636]
[1723332911963,0.000831,60937.0,60936.0,0.85758592]
[1723332912111,0.000831,60937.0,60936.0,0.77918592]
[1723332912112,0.143731,60937.0,60936.0,0.77918592]
[1723332912316,0.143731,60937.0,60936.0,0.85758592]
[1723332912582,0.143731,60937.0,60936.0,0.77918592]
[1723332912726,0.143731,60937.0,60936.0,0.85758592]
[1723332917712,0.143731,60937.0,60936.0,0.92938896]
[1723332918331,0.143731,60937.0,60936.0,0.85758592]
[1723332921369,0.080631,60937.0,60936.0,0.85758592]
[1723332921709,0.080631,60937.0,60936.0,0.9297748]
[1723332922095,0.000831,60937.0,60936.0,0.86721393]
[1723332922300,0.00065888,60937.0,60936.0,0.93940271]
[1723332923347,0.00065888,60937.0,60936.0,1.05165916]
[1723332924264,0.00065888,60937.0,60936.0,1.00250735]
[1723332924710,0.00065888,60937.0,60936.0,1.17284609]
[1723332924912,0.00065888,60937.0,60936.0,1.00250735]
[1723332925285,0.00065888,60937.0,60936.0,1.17284792]
[1723332925713,0.00065888,60937.0,60936.0,1.24075914]
[1723332925911,0.00065888,60937.0,60936.0,1.31325991]
[1723332926126,0.00065888,60937.0,60936.0,1.38709621]
[1723332926318,0.00065888,60937.0,60936.0,1.31330201]
[1723332927344,0.00065888,60937.0,60936.0,1.14296144]
[1723332929322,0.00065888,60937.0,60936.0,1.14295695]
[1723332930281,0.00065888,60937.0,60936.0,1.19218101]
[1723332930508,0.00065888,60937.0,60936.0,1.079809]
[1723332930864,0.08345888,60937.0,60936.0,0.97366403]
[1723332931064,0.08345888,60937.0,60936.0,0.861309]
[1723332931065,0.14995888,60937.0,60936.0,0.861309]
[1723332931266,0.14995888,60937.0,60936.0,0.98893306]
[1723332931495,0.08345888,60937.0,60936.0,0.939709]
[1723332932294,0.08345888,60937.0,60936.0,0.93008099]
[1723332932552,0.14995888,60937.0,60936.0,0.93008099]
[1723332932711,0.14995888,60937.0,60936.0,0.85758592]
[1723332932921,0.14995888,60937.0,60936.0,0.92967491]
[1723332936441,0.08345888,60937.0,60936.0,0.9295611]
[1723332936913,0.08345888,60937.0,60936.0,0.92959666]
[1723332938748,0.14865888,60937.0,60936.0,0.92959666]
[1723332939930,0.14865888,60937.0,60936.0,0.92968187]
[1723332940131,0.14865888,60937.0,60936.0,0.85128187]
[1723332940336,0.14865888,60937.0,60936.0,0.92968187]
[1723332943271,0.14865888,60937.0,60936.0,0.85758592]
[1723332943482,0.14865888,60937.0,60936.0,0.92959019]
[1723332943870,0.08345888,60937.0,60936.0,0.92959019]
[1723332944994,0.08345888,60937.0,60936.0,0.97883938]
[1723332947373,0.08345888,60937.0,60936.0,0.97870134]
[1723332949957,0.08345888,60937.0,60936.0,0.97869965]
[1723332950520,0.08345888,60937.0,60936.0,0.97876621]
[1723332951145,0.08345888,60937.0,60936.0,0.97968031]
[1723332953956,0.00065888,60937.0,60936.0,0.97968031]
[1723332954163,0.00065888,60937.0,60936.0,0.97977739]
[1723332955557,0.00065888,60937.0,60936.0,0.99355701]
[1723332956420,0.00065888,60937.0,60936.0,1.06742826]
[1723332956664,0.00065888,60937.0,60936.0,0.99355701]
[1723332958139,0.00065888,60937.0,60936.0,0.99369146]
[1723332959039,0.00065888,60937.0,60936.0,1.13379146]
[1723332959239,0.00065888,60937.0,60936.0,1.29789746]
[1723332959441,0.00065888,60937.0,60936.0,1.26538763]
[1723332959642,0.00065888,60937.0,60936.0,1.67090502]
[1723332960922,0.00065888,60937.0,60936.0,1.67084836]
[1723332963961,0.00065888,60937.0,60936.0,1.67072467]
[1723332967653,0.00065888,60937.0,60936.0,1.67073268]
[1723332968041,0.00065888,60937.0,60936.0,1.67091105]
[1723332968793,0.00065888,60937.0,60936.0,1.67092882]
[1723332969434,0.00065888,60937.0,60936.0,1.67092879]
[1723332970280,0.00065888,60937.0,60936.0,1.68092879]
[1723332971078,0.00065888,60937.0,60936.0,1.53082879]
[1723332971276,0.00065888,60937.0,60936.0,1.6537674]
[1723332971751,0.00065888,60937.0,60936.0,1.53082879]
[1723332972132,0.00065888,60937.0,60936.0,1.45242879]
[1723332972333,0.00065888,60937.0,60936.0,1.50191111]
[1723332972652,0.00065888,60937.0,60936.0,1.3069981]
[1723332972856,0.00065888,60937.0,60936.0,1.2285981]
[1723332973054,0.00065888,60937.0,60936.0,1.14277307]
[1723332973055,0.14275888,60937.0,60936.0,1.14277307]
[1723332973234,0.14275888,60937.0,60936.0,1.09359498]
[1723332974677,0.14275888,60937.0,60936.0,1.03059143]
[1723332975840,0.14275888,60937.0,60936.0,0.93059143]
[1723332976042,0.14275888,60937.0,60936.0,0.4291791]
[1723332976161,0.14275888,60937.0,60936.0,0.5075791]
[1723332977187,0.14275888,60937.0,60936.0,0.4985791]
[1723332977600,0.14275888,60937.0,60936.0,0.4995791]
[1723332978629,0.14275888,60937.0,60936.0,0.5005791]
[1723332979026,0.14275888,60937.0,60936.0,0.4895791]
[1723332979229,0.14375888,60937.0,60936.0,0.4895791]
[1723332979459,0.14475888,60937.0,60936.0,0.4895791]
[1723332979654,0.16580471,60937.0,60936.0,0.4895791]
[1723332979861,0.16480471,60937.0,60936.0,0.4895791]
[1723332980066,0.16680471,60937.0,60936.0,0.4895791]
[1723332980668,0.16480471,60937.0,60936.0,0.4895791]
[1723332980914,0.16580471,60937.0,60936.0,0.4895791]
[1723332981115,0.16680471,60937.0,60936.0,0.4895791]
[1723332981746,0.16680471,60937.0,60936.0,0.65339402]
[1723332981747,0.16580471,60937.0,60936.0,0.65339402]
[1723332981943,0.10150471,60937.0,60936.0,0.74858806]
[1723332982144,0.07945888,60937.0,60936.0,0.91269406]
[1723332982346,0.07845888,60937.0,60936.0,0.91269406]
[1723332982601,0.07945888,60937.0,60936.0,0.91269406]
[1723332982799,0.08045888,60937.0,60936.0,0.91269406]
[1723332983305,0.07945888,60937.0,60936.0,0.91269406]
[1723332984085,0.07945888,60937.0,60936.0,0.91369406]
[1723332984411,0.07845888,60937.0,60936.0,0.91369406]
[1723332985176,0.07845888,60937.0,60936.0,0.91489935]
[1723332986533,0.00065888,60937.0,60936.0,0.91489935]
[1723332988781,0.00065888,60937.0,60936.0,0.91497652]
[1723332989123,0.00065888,60937.0,60936.0,0.84250002]
[1723332989383,0.00065888,60937.0,60936.0,0.91504632]
[1723332991612,0.00065888,60937.0,60936.0,0.9359334]
[1723332995419,0.00065888,60937.0,60936.0,0.7718274]
[1723332995549,0.00065888,60937.0,60936.0,0.75094032]
[1723332995752,0.00065888,60937.0,60936.0,0.84250002]
[1723332995959,0.00065888,60937.0,60936.0,0.91510717]
[1723332999480,0.00065888,60937.0,60936.0,0.84250002]
[1723332999718,0.00065888,60937.0,60936.0,0.91515956]
[1723333000112,0.00065888,60937.0,60936.0,0.84250002]
[1723333000313,0.00065888,60937.0,60936.0,0.91515898]
[1723333007113,0.00065888,60937.0,60936.0,0.97829998]
[1723333008157,0.00065888,60937.0,60936.0,0.91515898]
[1723333008369,0.00065888,60937.0,60936.0,0.9782853]
[1723333009186,0.00065888,60937.0,60936.0,0.91515898]
[1723333009427,0.00065888,60937.0,60936.0,0.9783026]
[1723333010323,0.00065888,60937.0,60936.0,0.84250002]
[1723333010507,0.00065888,60937.0,60936.0,0.97814864]